bitfinex-derivatives/quotes_SOLF0:USTF0_20250227
["timestamp","ask_amount","ask_price","bid_price","bid_amount"]
[1740660018268,0.04866533,140.47,140.45,0.05217926]
[1740660018469,0.04866533,140.47,140.46,7.125]
[1740660023173,7.1223,140.52,140.5,7.1229]
[1740660023367,1.8971,140.56,140.5,7.1229]
[1740660023770,7.1217,140.53,140.5,7.1229]
[1740660024269,7.121,140.54,140.5,7.1229]
[1740660024465,0.05106491,140.53,140.5,7.17754604]
[1740660026073,0.05106491,140.53,140.51,7.1224]
[1740660027275,0.05106491,140.53,140.5,0.05464604]
[1740660027469,0.05106491,140.53,140.52,7.1219]
[1740660028980,0.05106491,140.53,140.5,0.05464604]
[1740660029481,0.05106491,140.53,140.5,7.17714604]
[1740660030680,0.05106491,140.53,140.51,7.1224]
[1740660031181,0.05106491,140.53,140.52,7.1219]
[1740660031381,0.05106491,140.53,140.5,0.05464604]
[1740660031983,0.05106491,140.53,140.51,7.1221]
[1740660032184,0.05106491,140.53,140.5,0.05464604]
[1740660032578,0.05106491,140.53,140.52,7.1219]
[1740660033579,0.05106491,140.53,140.5,0.05464604]
[1740660034281,0.05106491,140.53,140.52,7.1219]
[1740660036183,9.0971,140.59,140.55,7.1201]
[1740660036384,7.1185,140.59,140.55,7.1201]
[1740660037285,0.0523542,140.58,140.56,0.04671106]
[1740660038185,0.0523542,140.58,140.56,7.16661106]
[1740660038385,0.0523542,140.58,140.56,0.04671106]
[1740660039384,0.0523542,140.58,140.57,7.1194]
[1740660046681,0.43950358,140.66,140.56,0.04671106]
[1740660046885,0.43950358,140.66,140.54,5.9137]
[1740660047488,7.1157,140.65,140.61,7.1169]
[1740660047691,7.1157,140.65,140.54,5.9137]
[1740660047986,7.16309087,140.64,140.62,0.04560235]
[1740660048192,7.169224,140.64,140.62,0.05174449]
[1740660048692,0.053124,140.64,140.62,0.05174449]
[1740660048894,7.1164,140.63,140.62,0.05174449]
[1740660050295,7.169224,140.64,140.62,0.05174449]
[1740660050689,7.169224,140.64,140.62,7.16854449]
[1740660051096,7.1164,140.63,140.62,0.05174449]
[1740660053295,7.1185,140.59,140.54,5.9137]
[1740660053597,7.1185,140.59,140.55,7.1202]
[1740660054094,1.913,140.63,140.54,5.9137]
[1740660054302,7.1181,140.6,140.56,7.1198]
[1740660054493,7.16767135,140.6,140.57,0.05320935]
[1740660056099,7.1184,140.59,140.57,0.05320935]
[1740660057799,0.04957135,140.6,140.57,0.05320935]
[1740660058101,7.1189,140.58,140.57,0.05320935]
[1740660059794,0.04957135,140.6,140.57,0.05320935]
[1740660059999,7.1187,140.59,140.57,0.05320935]
[1740660060194,0.04957135,140.6,140.57,0.05320935]
[1740660061601,7.1189,140.58,140.57,0.05320935]
[1740660063802,7.1186,140.59,140.57,0.05320935]
[1740660064501,7.1189,140.58,140.57,0.05320935]
[1740660065703,0.04957135,140.6,140.57,0.05320935]
[1740660065901,0.04957135,140.6,140.57,7.17260935]
[1740660066100,0.04957135,140.6,140.57,0.05320935]
[1740660066301,0.04957135,140.6,140.59,7.1184]
[1740660066495,1.9157,140.66,140.58,17.0695]
[1740660066700,1.9446,140.67,140.58,17.0695]
[1740660067106,7.1154,140.65,140.62,7.1166]
[1740660067703,7.16106092,140.65,140.62,7.16194268]
[1740660068103,7.16106092,140.65,140.62,0.04534268]
[1740660068502,7.1164,140.63,140.62,0.04534268]
[1740660068808,1.9981,140.64,140.53,11.24]
[1740660069000,1.8895,140.63,140.53,11.24]
[1740660069705,1.8895,140.63,140.57,0.05436893]
[1740660069905,0.0463359,140.59,140.57,0.05436893]
[1740660070409,7.1189,140.58,140.57,0.05436893]
[1740660072309,0.0463359,140.59,140.57,0.05436893]
[1740660074306,0.0463359,140.59,140.57,7.17376893]
[1740660076107,0.0463359,140.59,140.57,0.05436893]
[1740660077108,0.0463359,140.59,140.57,7.17376893]
[1740660078209,0.0463359,140.59,140.58,7.1189]
[1740660078399,1.9446,140.67,140.57,0.05436893]
[1740660078615,1.9446,140.67,140.53,13.2624]
[1740660079310,7.1161,140.64,140.6,7.1177]
[1740660079511,1.9446,140.67,140.6,7.1177]
[1740660079708,0.05108559,140.63,140.61,0.05416833]
[1740660080506,7.1169,140.62,140.61,0.05416833]
[1740660082012,7.16758559,140.63,140.61,0.05416833]
[1740660082713,0.05108559,140.63,140.61,0.05416833]
[1740660083410,0.05108559,140.63,140.61,7.17126833]
[1740660084505,7.1169,140.62,140.61,0.05416833]
[1740660085313,0.05108559,140.63,140.61,0.05416833]
[1740660085613,0.05108559,140.63,140.61,7.17126833]
[1740660085821,0.05108559,140.63,140.61,0.05416833]
[1740660086718,0.05108559,140.63,140.61,7.17136833]
[1740660088128,0.05108559,140.63,140.61,0.05416833]
[1740660089421,7.1169,140.62,140.61,0.05416833]
[1740660096426,7.16768559,140.63,140.61,0.05416833]
[1740660097233,0.05108559,140.63,140.61,0.05416833]
[1740660097639,13.38740724,140.71,140.61,4.05036833]
[1740660097829,20.49970724,140.71,140.68,7.1138]
[1740660098037,13.38740724,140.71,140.61,3.9962]
[1740660098233,78.45665882,140.72,140.61,3.9962]
[1740660098540,78.45665882,140.72,140.71,7.1123]
[1740660099936,7.1123,140.71,140.7,0.05290442]
[1740660100336,3.8878,140.72,140.57,7.69670316]
[1740660100537,7.1144,140.67,140.56,11.26]
[1740660101236,7.114,140.68,140.59,7.1183]
[1740660101430,3.8878,140.72,140.6,3.8478]
[1740660101636,0.05202708,140.65,140.62,0.05372551]
[1740660101835,3.8878,140.72,140.63,11.28]
[1740660102035,0.04930942,140.65,140.63,11.28]
[1740660102236,3.8878,140.72,140.63,11.28]
[1740660102535,7.1125,140.71,140.63,11.28]
[1740660102736,0.04566815,140.69,140.66,0.04992964]
[1740660108039,7.15906815,140.69,140.66,0.04992964]
[1740660108238,0.04566815,140.69,140.66,0.04992964]
[1740660108439,7.1143,140.68,140.66,0.04992964]
[1740660109141,7.1143,140.67,140.66,0.04992964]
[1740660109641,7.1143,140.67,140.66,2.964e-05]
[1740660111337,28.4343,140.67,140.66,2.964e-05]
[1740660111942,29.51270807,140.67,140.66,2.964e-05]
[1740660113239,22.39840807,140.67,140.5,53.01564577]
[1740660113464,198.83790807,140.66,140.51,11.24]
[1740660113641,197.7595,140.66,140.51,11.24]
[1740660113841,7.1187,140.59,140.52,7.1216]
[1740660114539,0.05480207,140.57,140.54,0.04692456]
[1740660114945,7.17440207,140.57,140.54,0.04692456]
[1740660115548,0.05480207,140.57,140.54,0.04692456]
[1740660116047,7.1204,140.55,140.54,0.04692456]
[1740660116946,7.1222,140.52,140.45,39.30094404]
[1740660117544,7.1222,140.52,140.46,7.1247]
[1740660117747,7.1222,140.52,140.45,39.30094404]
[1740660118041,0.04634786,140.5,140.47,0.04803891]
[1740660118245,3.8945,140.56,140.45,39.30094404]
[1740660118441,0.05359429,140.5,140.47,0.04795574]
[1740660118647,7.1206,140.55,140.49,7.1234]
[1740660118846,0.05432179,140.5,140.47,0.04595378]
[1740660119048,0.05432179,140.5,140.49,7.1234]
[1740660119548,0.05432179,140.5,140.47,0.05126929]
[1740660121442,7.1234,140.49,140.47,0.05126929]
[1740660121642,0.05432179,140.5,140.47,0.05126929]
[1740660121852,0.05432179,140.5,140.41,11.26]
[1740660122148,1.07959378,140.55,140.41,11.26]
[1740660122339,1.07971213,140.54,140.41,11.26]
[1740660122546,7.1248,140.47,140.43,7.1262]
[1740660122747,192.0,140.55,140.43,7.1262]
[1740660122941,1.07973726,140.54,140.41,11.26]
[1740660123248,0.04684719,140.5,140.48,0.05055194]
[1740660123552,7.1224,140.52,140.48,7.17445194]
[1740660123744,0.04692371,140.5,140.48,0.05055194]
[1740660123942,3.8945,140.56,140.48,0.05055194]
[1740660124150,7.1231,140.5,140.48,0.05055194]
[1740660124453,0.05402371,140.53,140.48,0.05055194]
[1740660125350,7.17572371,140.53,140.5,7.1226]
[1740660125768,0.05402371,140.53,140.48,11.31055194]
[1740660126151,0.05402371,140.53,140.49,6.1078]
[1740660126353,5.03200675,140.62,140.49,6.1078]
[1740660126354,3.9531,140.62,140.49,6.1078]
[1740660126551,78.45665882,140.63,140.49,201.1078]
[1740660126756,1.9156,140.66,140.49,222.4778]
[1740660127052,1.9585,140.68,140.49,222.4778]
[1740660127261,3.8152,140.67,140.49,27.4778]
[1740660127447,0.04750643,140.6,140.57,0.04487215]
[1740660127655,3.8152,140.67,140.57,11.32487215]
[1740660127854,7.1168,140.63,140.58,4.026]
[1740660128048,3.8152,140.67,140.57,0.04487215]
[1740660128448,7.1185,140.59,140.54,11.28]
[1740660128654,3.8152,140.67,140.54,11.28]
[1740660129056,7.1184,140.6,140.54,11.28]
[1740660129558,0.05140384,140.58,140.56,0.05432334]
[1740660130953,7.1194,140.57,140.56,2.334e-05]
[1740660131159,0.05140384,140.58,140.5,1.8961]
[1740660131352,1.07888258,140.65,140.5,1.8961]
[1740660132061,1.07888258,140.65,140.48,11.3]
[1740660132265,0.04549665,140.59,140.56,7.801e-05]
[1740660132557,7.1231,140.5,140.44,22.4138]
[1740660132953,215.2582,140.6,140.44,15.288]
[1740660133155,195.0432565,140.59,140.44,15.288]
[1740660133357,7.1233,140.5,140.44,15.288]
[1740660133952,7.1233,140.5,140.46,0.05390255]
[1740660133953,0.05375756,140.48,140.46,0.05390255]
[1740660134558,193.9639,140.59,140.46,21.41390255]
[1740660134756,193.9639,140.59,140.46,0.05390255]
[1740660134959,7.1192,140.58,140.44,210.288]
[1740660135358,7.1192,140.58,140.52,7.1216]
[1740660135557,192.0,140.66,140.52,11.3]
[1740660135859,449.59380472,140.71,140.53,4.0344]
[1740660135860,4.91744262,140.65,140.53,4.0344]
[1740660136057,7.1179,140.6,140.58,0.05304136]
[1740660136357,78.45665882,140.67,140.58,0.05304136]
[1740660136562,0.05278154,140.6,140.58,7.1189]
[1740660136755,7.1161,140.64,140.61,0.05415054]
[1740660136959,7.1161,140.64,140.58,7.1189]
[1740660137262,7.1161,140.64,140.53,4.0344]
[1740660137263,0.05134233,140.64,140.61,0.04896183]
[1740660137458,1.8967,140.69,140.61,0.04896183]
[1740660137660,7.1131,140.7,140.6,11.36]
[1740660137861,7.1131,140.7,140.61,11.5326568]
[1740660138259,78.45665882,140.75,140.62,1.926]
[1740660138459,7.1122,140.72,140.65,7.1151]
[1740660138661,78.45665882,140.75,140.62,1.926]
[1740660138866,7.1113,140.74,140.62,1.926]
[1740660139060,0.04736231,140.7,140.67,0.05229898]
[1740660142160,0.04736231,140.7,140.69,7.1133]
[1740660142361,7.1099,140.76,140.68,11.44]
[1740660142566,7.1099,140.76,140.69,1.9757]
[1740660143063,9.0061,140.77,140.71,7.1118]
[1740660143465,9.0061,140.77,140.69,1.9757]
[1740660143666,0.04784227,140.75,140.73,0.05200649]
[1740660145772,7.15814227,140.75,140.73,0.05200649]
[1740660146069,0.04784227,140.75,140.73,0.05200649]
[1740660146570,1.8777,140.83,140.73,0.05200649]
[1740660146870,286.20115882,140.91,140.69,1.9757]
[1740660146871,2.0446,140.85,140.69,1.9757]
[1740660147070,7.1071,140.82,140.76,7.1095]
[1740660147862,0.0479036,140.8,140.78,0.05226823]
[1740660148769,0.0479036,140.8,140.79,7.1083]
[1740660148964,78.45665882,140.91,140.78,21.35226823]
[1740660149168,78.45665882,140.91,140.76,1.8516]
[1740660150071,0.04997463,140.85,140.82,0.05110056]
[1740660150267,7.1036,140.89,140.83,11.44]
[1740660150663,0.04998222,140.87,140.84,1.9438]
[1740660150868,0.04998222,140.87,140.85,0.04856746]
[1740660151071,0.04998222,140.87,140.85,7.15366746]
[1740660151270,0.04998222,140.87,140.85,0.04856746]
[1740660152365,0.04998222,140.87,140.85,7.15376746]
[1740660152774,7.1008,140.94,140.85,0.04856746]
[1740660152968,1.9031,140.96,140.84,3.9221]
[1740660153283,7.1021,140.92,140.84,3.9221]
[1740660153471,7.1021,140.92,140.86,7.1044]
[1740660153870,7.1021,140.92,140.84,3.9221]
[1740660154076,0.05442284,140.9,140.88,0.05372372]
[1740660154373,1.9772,140.97,140.88,0.05372372]
[1740660154576,7.1004,140.95,140.84,3.9221]
[1740660155172,1.8879,140.99,140.84,3.9221]
[1740660155382,0.04653318,140.91,140.88,0.05014641]
[1740660155670,1.8879,140.99,140.84,3.9221]
[1740660156067,1.8879,140.99,140.85,1.30527271]
[1740660156273,166.5862943,141.05,140.85,1.30527271]
[1740660156574,166.5862943,141.05,140.95,7.0999]
[1740660156775,0.04734766,140.96,140.95,18.5399]
[1740660156970,166.5862943,141.05,140.95,11.44]
[1740660157474,7.0985,140.99,140.95,11.44]
[1740660157668,0.04595741,141.01,140.99,0.04794948]
[1740660157872,0.04595741,141.01,140.95,11.44]
[1740660158076,7.0977,141.0,140.99,0.05373369]
[1740660158675,7.0977,141.0,140.99,3.369e-05]
[1740660159173,0.04595741,141.01,140.99,3.369e-05]
[1740660159376,7.14325741,141.01,140.99,3.369e-05]
[1740660159978,7.0977,141.0,140.99,3.369e-05]
[1740660167378,7.14335741,141.01,140.99,3.369e-05]
[1740660167888,0.04595741,141.01,140.99,3.369e-05]
[1740660168088,7.14335741,141.01,140.99,3.369e-05]
[1740660168488,0.04595741,141.01,140.99,3.369e-05]
[1740660168688,7.14335741,141.01,140.99,3.369e-05]
[1740660169980,0.04595741,141.01,140.99,3.369e-05]
[1740660171285,0.04595741,141.01,140.99,7.09803369]
[1740660171483,0.04595741,141.01,140.99,3.369e-05]
[1740660172088,0.04595741,141.01,140.99,7.09813369]
[1740660173209,0.04595741,141.01,141.0,7.0977]
[1740660174282,0.04595741,141.01,140.99,3.369e-05]
[1740660174985,7.0977,141.0,140.99,3.369e-05]
[1740660176181,10.91,141.0,140.99,3.369e-05]
[1740660179493,12.954,141.0,140.99,3.369e-05]
[1740660183296,34.234,141.0,140.99,3.369e-05]
[1740660183491,12.954,141.0,140.99,3.369e-05]
[1740660184694,7.0977,141.0,140.99,3.369e-05]
[1740660186894,7.14325741,141.01,140.99,3.369e-05]
[1740660187594,0.04595741,141.01,140.99,3.369e-05]
[1740660189098,0.04595741,141.01,140.99,7.09823369]
[1740660189495,0.04595741,141.01,140.99,3.369e-05]
[1740660189698,0.04595741,141.01,141.0,7.0977]
[1740660190902,7.0945,141.07,140.99,3.369e-05]
[1740660191097,7.0945,141.07,140.96,5.7261]
[1740660191292,7.095,141.06,141.02,7.0962]
[1740660191497,1.0,141.1,140.96,5.7261]
[1740660191799,1.0,141.1,141.02,7.0965]
[1740660191995,1.0,141.1,141.02,7.14623833]
[1740660191996,0.05346337,141.04,141.02,7.14623833]
[1740660192198,1.0,141.1,141.02,7.14623833]
[1740660192397,0.04926809,141.04,141.02,7.14623833]
[1740660192596,0.05416034,141.04,141.02,0.04973833]
[1740660194304,0.05416034,141.04,141.02,7.14613833]
[1740660194801,7.0962,141.03,141.02,0.04973833]
[1740660197008,0.05416034,141.04,141.02,7.14643833]
[1740660197206,0.05416034,141.04,141.02,0.04973833]
[1740660197605,0.05416034,141.04,141.02,7.14613833]
[1740660198321,0.05416034,141.04,141.03,7.0962]
[1740660198812,1.0,141.1,141.02,11.40973833]
[1740660199410,7.0934,141.09,141.06,7.0944]
[1740660200109,7.11600367,141.09,141.06,7.14702055]
[1740660200907,7.11600367,141.09,141.06,0.05262055]
[1740660201402,0.02260367,141.09,141.06,0.05262055]
[1740660202208,1.0,141.1,141.06,0.05262055]
[1740660202410,3.9733,141.17,141.06,0.05262055]
[1740660202609,3.9733,141.17,141.03,197.0304]
[1740660203010,7.0915,141.13,141.03,197.0304]
[1740660203311,7.0915,141.13,141.09,7.0928]
[1740660203513,3.9733,141.17,141.07,0.04820449]
[1740660203713,7.092,141.12,141.08,7.0935]
[1740660203910,7.092,141.12,141.11,0.04879482]
[1740660204412,2.0351,141.16,141.11,0.04879482]
[1740660204614,1.9972,141.17,141.11,0.04879482]
[1740660205109,7.0916,141.13,141.11,0.04879482]
[1740660205512,7.091,141.14,141.11,0.04879482]
[1740660205819,2.0351,141.19,141.11,0.04879482]
[1740660206404,7.0914,141.13,141.11,0.04879482]
[1740660207217,2.0351,141.19,141.11,0.04879482]
[1740660207417,7.0916,141.12,141.11,0.04879482]
[1740660209015,7.0914,141.13,141.11,0.04879482]
[1740660210014,7.0916,141.12,141.11,0.04879482]
[1740660211615,7.0916,141.12,141.11,9.482e-05]
[1740660214617,10.972,141.12,141.11,9.482e-05]
[1740660215123,34.2089,141.12,141.11,9.482e-05]
[1740660216223,12.9489,141.12,141.11,9.482e-05]
[1740660217520,34.2089,141.12,141.11,9.482e-05]
[1740660218024,35.2832469,141.12,141.11,9.482e-05]
[1740660220327,34.2089,141.12,141.11,9.482e-05]
[1740660220624,28.19184172,141.12,140.98,7.0985]
[1740660220927,7.0976,141.01,140.98,7.0985]
[1740660221123,14.1867,141.09,140.98,7.0985]
[1740660221321,32.69,141.11,140.95,192.9]
[1740660221526,7.0997,140.96,140.91,5.9066]
[1740660221722,7.0997,140.96,140.93,7.1009]
[1740660221928,7.0997,140.96,140.91,5.9066]
[1740660221929,0.0460527,140.95,140.92,0.04683764]
[1740660222429,0.0460527,140.95,140.94,7.1007]
[1740660223431,0.0460527,140.95,140.92,0.04683764]
[1740660224434,0.0460527,140.95,140.93,7.1009]
[1740660224829,0.0460527,140.95,140.92,0.04683764]
[1740660225032,0.0460527,140.95,140.94,7.1007]
[1740660225535,7.0974,141.01,140.97,7.0988]
[1740660225727,193.9043,141.1,140.97,11.3]
[1740660225923,7.096,141.04,141.0,7.0973]
[1740660226731,7.0954,141.05,141.01,7.14830165]
[1740660226932,7.0954,141.05,141.01,7.0969]
[1740660227128,197.9653,141.1,141.02,0.04585837]
[1740660227432,7.096,141.04,141.02,0.04585837]
[1740660227832,7.0962,141.03,141.02,0.04585837]
[1740660228533,5.9653,141.1,141.02,0.04585837]
[1740660228832,5.9653,141.1,141.02,7.14235837]
[1740660229133,5.9653,141.1,141.02,0.04585837]
[1740660229431,7.0956,141.05,141.02,0.04585837]
[1740660229824,7.0962,141.03,141.02,0.04585837]
[1740660232029,5.9653,141.1,140.97,11.3]
[1740660232226,7.0995,140.97,140.93,3.7609]
[1740660233029,7.0998,140.96,140.93,3.7609]
[1740660233337,7.14805629,140.96,140.94,0.05270717]
[1740660233725,0.04825629,140.96,140.94,0.05270717]
[1740660234531,0.04825629,140.96,140.87,192.94]
[1740660234727,3.8315,141.03,140.88,5.9286]
[1740660235033,7.1,140.96,140.92,7.1014]
[1740660235237,3.8315,141.03,140.88,5.9286]
[1740660235535,7.0996,140.97,140.88,5.9286]
[1740660235832,3.8315,141.03,140.88,5.9286]
[1740660236030,0.05090768,140.94,140.93,7.1012]
[1740660236336,3.8315,141.03,140.93,11.3]
[1740660236731,7.098,141.0,140.96,7.0993]
[1740660237132,3.8315,141.03,140.93,11.3]
[1740660237328,7.0993,140.97,140.94,7.1005]
[1740660237835,7.0993,140.97,140.94,0.05192571]
[1740660239034,7.0993,140.97,140.94,7.15252571]
[1740660239436,0.05039998,140.99,140.94,0.05192571]
[1740660240245,7.1002,140.95,140.94,0.05192571]
[1740660243340,7.1031,140.9,140.84,11.28]
[1740660243535,3.9733,140.95,140.84,13.3041]
[1740660243938,7.103,140.9,140.84,13.3041]
[1740660244133,3.9733,140.95,140.84,13.3041]
[1740660244341,7.1035,140.89,140.84,2.0241]
[1740660244536,0.04724578,140.91,140.88,0.05284765]
[1740660244740,3.9733,140.95,140.85,7.105]
[1740660245044,0.05370725,140.91,140.88,0.04738532]
[1740660245537,7.1032,140.89,140.88,0.04738532]
[1740660248137,0.05370725,140.91,140.88,0.04738532]
[1740660248341,0.05370725,140.91,140.89,7.1029]
[1740660248736,0.05370725,140.91,140.9,7.1027]
[1740660249742,7.1005,140.95,140.89,1.89]
[1740660249939,7.1005,140.95,140.92,7.1014]
[1740660250241,1.8632,140.98,140.92,7.1014]
[1740660250442,7.1,140.96,140.92,7.1014]
[1740660250843,7.1,140.96,140.93,0.05182576]
[1740660251041,0.04861844,140.95,140.93,0.05182576]
[1740660251547,7.14891844,140.95,140.93,0.05182576]
[1740660251847,0.04861844,140.95,140.93,0.05182576]
[1740660253255,7.14911844,140.95,140.93,0.05182576]
[1740660254250,7.1007,140.94,140.93,0.05182576]
[1740660256747,7.14911844,140.95,140.93,0.05182576]
[1740660257056,0.04861844,140.95,140.93,7.15302576]
[1740660257850,0.04861844,140.95,140.93,0.05182576]
[1740660258052,0.04861844,140.95,140.94,7.1007]
[1740660260158,7.0976,141.01,140.93,0.05182576]
[1740660260360,7.0976,141.01,140.9,3.9111]
[1740660261060,2.0028,141.02,140.97,7.0992]
[1740660261260,7.0977,141.0,140.94,0.0532202]
[1740660261456,2.0028,141.02,140.9,3.9111]
[1740660261658,2.0028,141.02,140.96,0.04746137]
[1740660262055,2.0028,141.02,140.96,7.14706137]
[1740660262056,7.098,141.0,140.96,7.14706137]
[1740660262860,7.0983,140.99,140.96,7.14706137]
[1740660263958,7.0992,140.97,140.96,0.04746137]
[1740660268161,2.0028,141.02,140.96,0.04746137]
[1740660268358,2.0028,141.02,140.96,7.14686137]
[1740660268559,7.0987,140.98,140.96,7.14686137]
[1740660269163,2.0028,141.02,140.96,0.04746137]
[1740660269362,7.0992,140.97,140.96,0.04746137]
[1740660271264,2.0028,141.02,140.96,0.04746137]
[1740660272260,7.0991,140.98,140.96,0.04746137]
[1740660273857,7.0992,140.97,140.96,0.04746137]
[1740660275060,2.0028,141.02,140.89,1.89]
[1740660275369,14.1957,141.0,140.9,7.1027]
[1740660275669,14.1957,141.0,140.89,8.9929]
[1740660276165,7.102,140.92,140.89,7.1029]
[1740660276370,0.04746137,140.96,140.93,0.0535624]
[1740660276565,0.04566915,140.96,140.89,7.15548013]
[1740660276872,0.04566915,140.96,140.91,0.05128739]
[1740660277665,7.102,140.92,140.91,0.05128739]
[1740660278166,0.04640981,140.93,140.91,7.15328739]
[1740660278370,7.1009,140.94,140.91,7.102]
[1740660278566,0.04548794,140.93,140.91,0.04885769]
[1740660278766,1.07532686,141.01,140.86,15.0359]
[1740660278968,0.04746137,140.93,140.91,0.05377252]
[1740660279166,0.04746137,140.93,140.86,15.0359]
[1740660279167,1.07532686,141.01,140.86,15.0359]
[1740660279368,0.04746137,140.93,140.91,0.0466524]
[1740660279568,2.0028,141.02,140.86,15.0359]
[1740660279872,0.04746137,140.93,140.92,7.1017]
[1740660280169,7.1001,140.96,140.92,7.1017]
[1740660280372,0.04746137,140.94,140.92,7.1017]
[1740660281968,0.04746137,140.94,140.93,7.1012]
[1740660283072,0.04746137,140.94,140.92,9.0703]
[1740660283273,0.04746137,140.94,140.91,0.04732869]
[1740660283472,7.14846137,140.94,140.91,7.14922869]
[1740660284081,0.04746137,140.94,140.91,0.04732869]
[1740660284772,0.04746137,140.94,140.92,7.1014]
[1740660285370,0.04746137,140.94,140.93,7.1012]
[1740660286878,0.04746137,140.94,140.92,7.1015]
[1740660288281,0.04746137,140.94,140.91,0.04732869]
[1740660288480,0.04746137,140.94,140.93,7.1012]
[1740660294393,0.04746137,140.94,140.91,0.04732869]
[1740660294596,0.04746137,140.94,140.92,7.1015]
[1740660295091,7.14816137,140.94,140.92,7.1015]
[1740660295790,0.04746137,140.94,140.92,7.1015]
[1740660296395,0.04746137,140.94,140.93,7.1012]
[1740660298490,0.04746137,140.94,140.92,7.1014]
[1740660300298,7.14836137,140.94,140.91,7.14922869]
[1740660300498,0.04746137,140.94,140.91,0.04732869]
[1740660301500,7.1017,140.92,140.91,0.04732869]
[1740660302496,7.1014,140.93,140.91,0.04732869]
[1740660302891,0.04746137,140.94,140.91,0.04732869]
[1740660303800,0.04746137,140.94,140.92,7.1014]
[1740660304098,0.04746137,140.94,140.91,0.04732869]
[1740660304295,7.1012,140.93,140.91,0.04732869]
[1740660304503,0.04746137,140.94,140.91,0.04732869]
[1740660304691,0.04746137,140.94,140.93,7.1012]
[1740660305489,0.04746137,140.94,140.91,0.04732869]
[1740660305895,0.04746137,140.94,140.93,7.1012]
[1740660306301,7.0973,141.01,140.93,11.22]
[1740660306600,2.0028,141.02,140.98,7.0986]
[1740660307103,7.0966,141.03,140.93,11.22]
[1740660307494,7.0971,141.02,140.97,0.04801569]
[1740660307691,7.0971,141.02,140.98,7.0987]
[1740660307892,82.47635882,141.05,140.97,0.04801569]
[1740660308092,7.0987,140.98,140.97,0.04801569]
[1740660308295,34.68412883,141.04,140.9,7.1024]
[1740660308497,7.1007,140.94,140.9,7.1024]
[1740660308696,7.1007,140.94,140.87,3.8639]
[1740660308892,7.1007,140.94,140.86,7.56529044]
[1740660308893,213.32,141.02,140.88,7.1035]
[1740660309093,7.1015,140.93,140.85,11.2]
[1740660309401,0.04496951,140.9,140.89,7.1029]
[1740660311403,3.9812,140.99,140.88,0.0449495]
[1740660311609,3.9812,140.99,140.85,18.82507959]
[1740660311610,7.1005,140.95,140.86,1.9737]
[1740660311897,7.1005,140.95,140.91,7.1018]
[1740660312499,3.9812,140.99,140.94,7.1004]
[1740660312707,78.45665882,141.02,140.86,9.59877959]
[1740660312708,78.45665882,141.02,140.93,11.22]
[1740660313007,85.55355882,141.02,140.95,0.0513869]
[1740660313405,7.098,141.0,140.95,0.0513869]
[1740660313597,78.45665882,141.02,140.95,0.0513869]
[1740660315103,7.0988,140.98,140.95,0.0513869]
[1740660315303,192.0,141.05,140.95,0.0513869]
[1740660315501,1.07506224,141.04,140.92,7.1017]
[1740660315801,41.4732,141.06,140.92,7.1017]
[1740660315802,41.4732,141.06,140.99,9.588e-05]
[1740660315996,13.35594352,141.05,140.99,9.588e-05]
[1740660316200,7.0977,141.0,140.99,9.588e-05]
[1740660321406,11.1008,141.0,140.99,9.588e-05]
[1740660323207,7.0977,141.0,140.99,9.588e-05]
[1740660323406,7.14306558,141.01,140.99,9.588e-05]
[1740660323607,0.04566558,141.01,140.99,9.588e-05]
[1740660324510,0.04566558,141.01,140.99,7.09779588]
[1740660325711,0.04566558,141.01,140.99,9.588e-05]
[1740660326109,7.14286558,141.01,140.99,9.588e-05]
[1740660326714,7.0977,141.0,140.99,9.588e-05]
[1740660329916,8.9516,141.0,140.99,9.588e-05]
[1740660330515,30.2316,141.0,140.99,9.588e-05]
[1740660331516,31.30701561,141.0,140.99,9.588e-05]
[1740660333015,30.2316,141.0,140.99,9.588e-05]
[1740660333214,31.30707599,141.0,140.99,9.588e-05]
[1740660334713,31.30707726,141.0,140.99,9.588e-05]
[1740660334914,8.9516,141.0,140.99,9.588e-05]
[1740660336413,7.0977,141.0,140.99,9.588e-05]
[1740660338313,28.3777,141.0,140.99,9.588e-05]
[1740660338519,29.45312516,141.0,140.99,9.588e-05]
[1740660338911,7.0977,141.0,140.99,9.588e-05]
[1740660339318,28.3777,141.0,140.99,9.588e-05]
[1740660339715,29.45309802,141.0,140.99,9.588e-05]
[1740660341322,29.45309802,141.0,140.84,3.9442]